[Event "WSTCC-50 2024"]
[Site "Krakow"]
[Date "2024.07.05"]
[Round "4.10"]
[White "Marinello, Beatriz"]
[Black "Paschall, William"]
[Result "0-1"]
[ECO "A47"]
[WhiteElo "2109"]
[BlackElo "2312"]
[Annotator "RC"]
[PlyCount "162"]
[EventDate "2024.07.01"]
[EventType "team-tourn"]
[EventCountry "POL"]
[SourceTitle "playchess.com"]
[Source "ChessBase"]
[SourceQuality "1"]
[TimeControl "40/5400+30:1800+30"]

1. d4 {[%emt 0:00:07]} Nf6 {[%emt 0:00:44]} 2. Nf3 {[%emt 0:00:24]} b6 {[%emt 0:01:48]} 3. e3 {[%emt 0:00:17]} Bb7 {[%emt 0:00:43]} 4. Be2 {[%emt 0:01:08]} c5 {[%emt 0:03:27]} 5. O-O {[%emt 0:00:39]} g6 {[%emt 0:01:14]} 6. b3 {[%emt 0:01:18]} Bg7 {[%emt 0:00:55]} 7. Bb2 {[%emt 0:00:10]} O-O {[%emt 0:00:35]} 8. c4 {[%emt 0:00:39]} e6 {[%emt 0:01:57]} 9. Nc3 {[%emt 0:01:07]} d6 {[%emt 0:04:41]} 10. Qd2 {[%emt 0:03:52]} Qe7 {[%emt 0:03:29]} 11. Rad1 {[%emt 0:01:41]} Rd8 {[%emt 0:01:36]} 12. Qc1 {[%emt 0:06:58]} Nbd7 {[%emt 0:05:50]} 13. Qa1 {[%emt 0:08:53]} Ne8 {[%emt 0:17:31]} 14. Rd2 {[%emt 0:05:03]} f5 {[%emt 0:00:51]} 15. Rfd1 {[%emt 0:00:21]} Ndf6 {[%emt 0:03:11]} 16. dxc5 {[%emt 0:12:12]} bxc5 {[%emt 0:00:35]} 17. h3 {[%emt 0:06:00]} Rab8 {[%emt 0:09:46]} 18. Ne1 {[%emt 0:06:06]} g5 {[%emt 0:07:20]} 19. Bf3 {[%emt 0:00:47]} h5 {[%emt 0:04:21]} 20. Bxb7 {[%emt 0:00:27]} Rxb7 {[%emt 0:03:09]} 21. Qb1 {[%emt 0:01:06]} Bh6 {[%emt 0:01:52]} 22. Qd3 {[%emt 0:02:51]} Qh7 {[%emt 0:00:49]} 23. Re2 {[%emt 0:06:51]} Ne4 {[%emt 0:08:17]} 24. Nxe4 {[%emt 0:05:45]} fxe4 {[%emt 0:00:49]} 25. Qc2 {[%emt 0:00:02]} g4 {[%emt 0:01:11]} 26. hxg4 {[%emt 0:00:31]} hxg4 {[%emt 0:00:10]} 27. f3 {[%emt 0:00:31]} gxf3 {[%emt 0:04:57]} 28. gxf3 {[%emt 0:00:02]} exf3 {[%emt 0:00:28]} 29. Qxh7+ {[%emt 0:00:10]} Rxh7 {[%emt 0:03:04]} 30. Nxf3 {[%emt 0:00:11]} Rdd7 {[%emt 0:01:03]} 31. Rg2+ {[%emt 0:01:54]} Kf8 {[%emt 0:00:50]} 32. Kf2 {[%emt 0:00:31]} Rdf7 {[%emt 0:01:46]} 33. Ke2 {[%emt 0:00:17]} Ke7 {[%emt 0:00:47]} 34. Rg6 {[%emt 0:04:09]} Bg7 {[%emt 0:01:58]} 35. Bxg7 {[%emt 0:01:16]} Rfxg7 {[%emt 0:01:28]} 36. Rdg1 {[%emt 0:03:52]} Rxg6 {[%emt 0:00:50]} 37. Rxg6 {[%emt 0:00:13]} Rh1 {[%emt 0:02:12]} 38. Kd3 {[%emt 0:04:45]} Ra1 {[%emt 0:00:29]} 39. Rg2 {[%emt 0:01:16]} Rd1+ 40. Kc3 {[%emt 0:00:49]} Rf1 {[%emt 0:01:40]} 41. Nd2 {[%emt 0:30:37]} Re1 {[%emt 0:30:49]} 42. Kd3 {[%emt 0:00:22]} Rd1 {[%emt 0:00:00]} 43. Kc3 {[%emt 0:00:00]} Rh1 {[%emt 0:00:00]} 44. Ne4 {[%emt 0:00:00]} Kd7 {[%emt 0:00:00]} 45. Kd3 {[%emt 0:00:00]} a6 {[%emt 0:00:00]} 46. Rg6 {[%emt 0:00:00]} Rh2 {[%emt 0:00:00]} 47. Nc3 {[%emt 0:00:00]} Ke7 {[%emt 0:00:00]} 48. Rg3 {[%emt 0:00:00]} Rf2 {[%emt 0:00:00]} 49. Ne2 {[%emt 0:00:00]} Kf7 {[%emt 0:00:00]} 50. Nc3 {[%emt 0:00:00]} Nf6 {[%emt 0:00:00]} 51. Rg5 {[%emt 0:00:00]} Rh2 {[%emt 0:00:00]} 52. Rg3 {[%emt 0:00:00]} Rh4 {[%emt 0:00:00]} 53. Rf3 {[%emt 0:00:00]} Ke7 {[%emt 0:00:00]} 54. Rg3 {[%emt 0:05:04]} Ng4 {[%emt 0:00:00]} 55. Kd2 {[%emt 0:01:10]} Kd7 {[%emt 0:00:00]} 56. Ne4 {[%emt 0:05:39]} Kc6 {[%emt 0:00:00]} 57. Kc3 {[%emt 0:02:07]} Ne5 {[%emt 0:00:00]} 58. Nd2 {[%emt 0:00:42]} Rh2 {[%emt 0:00:00]} 59. e4 {[%emt 0:01:53]} Rh4 {[%emt 0:01:45]} 60. a3 {[%emt 0:02:43]} Rh1 {[%emt 0:01:35]} 61. b4 {[%emt 0:03:53]} Rc1+ {[%emt 0:01:36]} 62. Kb2 {[%emt 0:00:09]} Rh1 {[%emt 0:00:37]} 63. Kc3 {[%emt 0:00:13]} Re1 {[%emt 0:00:35]} 64. bxc5 {[%emt 0:00:45]} Kxc5 {[%emt 0:00:59]} 65. Nb3+ {[%emt 0:00:11]} Kb6 {[%emt 0:00:09]} 66. Nd2 {[%emt 0:00:17]} a5 {[%emt 0:00:37]} 67. a4 {[%emt 0:00:58]} Ra1 {[%emt 0:00:52]} 68. Kb3 {[%emt 0:00:19]} Nd7 {[%emt 0:00:19]} 69. Rg8 {[%emt 0:01:42]} Nc5+ {[%emt 0:00:30]} 70. Kb2 {[%emt 0:00:01]} Rxa4 {[%emt 0:00:15]} 71. Rd8 {[%emt 0:00:41]} Kc7 {[%emt 0:00:33]} 72. Ra8 {[%emt 0:00:07]} e5 {[%emt 0:00:58]} 73. Rh8 {[%emt 0:00:25]} Rb4+ {[%emt 0:00:35]} 74. Kc2 {[%emt 0:00:03]} Rb8 {[%emt 0:00:52]} 75. Rh7+ {[%emt 0:00:52]} Kb6 {[%emt 0:00:15]} 76. Rh1 {[%emt 0:00:21]} Kc6 {[%emt 0:00:19]} 77. Ra1 {[%emt 0:00:09]} a4 {[%emt 0:00:17]} 78. Ra3 {[%emt 0:00:03]} Rh8 {[%emt 0:00:25]} 79. Re3 {[%emt 0:02:06]} Rh2 {[%emt 0:00:19]} 80. Kc1 {[%emt 0:00:33]} Kb6 {[%emt 0:00:37]} 81. Nb1 {[%emt 0:00:31]} Ka5 {[%emt 0:01:10]} 0-1

[Event "WSTCC-50 2024"]
[Site "Krakow"]
[Date "2024.07.05"]
[Round "4.10"]
[White "Davis, Lee"]
[Black "Cummings, David H."]
[Result "0-1"]
[ECO "A46"]
[WhiteElo "1932"]
[BlackElo "2314"]
[Annotator "TA"]
[PlyCount "86"]
[EventDate "2024.07.01"]
[EventType "team-tourn"]
[EventCountry "POL"]
[SourceTitle "playchess.com"]
[Source "ChessBase"]
[SourceQuality "1"]
[TimeControl "40/5400+30:1800+30"]

{[%evp 13,86,12,16,0,0,3,8,-12,-28,-32,-21,-17,-5,-15,-20,-23,-6,-10,-8,-27,-41,-35,-40,-35,-37,-32,-40,-41,-35,-51,-47,-141,-135,-147,-135,-166,-167,-179,-168,-166,-153,-195,-216,-186,-185,-228,-210,-197,-180,-479,-472,-561,-552,-552,-539,-568,-563,-596,-593,-675,-667,-643,-645,-1130,-1094,-2388,-2182,-2293,-4853,-1947,-2090,-5497,-5497,-5081,-2674]} 1. d4 {[%emt 0:00:03]} Nf6 {[%emt 0:00:15]} 2. Nf3 {[%emt 0:00:07]} e6 {[%emt 0:00:37]} 3. g3 {[%emt 0:00:10]} c5 {[%emt 0:00:52]} 4. Bg2 {[%emt 0:01:09]} cxd4 {[%emt 0:00:32]} 5. O-O {[%emt 0:01:05]} d5 {[%emt 0:00:37]} 6. Nxd4 {[%emt 0:00:32]} e5 {[%emt 0:00:49]} 7. Nb3 {[%emt 0:05:16]} Be6 {[%emt 0:00:50]} 8. c4 {[%emt 0:02:10]} Nc6 {[%emt 0:00:43]} 9. cxd5 {[%emt 0:00:55]} Nxd5 {[%emt 0:00:19]} 10. Nc3 {[%emt 0:07:02] Die Stellung ist ausgeglichen.} (10. N1d2 $5) 10... Nxc3 {[%emt 0:11:37]} 11. Qxd8+ {[%emt 0:05:53]} Rxd8 {[%emt 0:00:19]} (11... Nxd8 {vereinfacht} 12. bxc3 Rc8 13. Bb2 Be7) 12. bxc3 {[%emt 0:00:03]} Bd5 {[%emt 0:09:00]} 13. Bxd5 {[%emt 0:10:36]} Rxd5 {[%emt 0:00:05]} 14. Be3 {[%emt 0:04:25]} Be7 {[%emt 0:02:31]} 15. Rfd1 {[%emt 0:00:29]} Rd8 {[%emt 0:01:23]} 16. Nc5 {[%emt 0:04:59]} b6 {[%emt 0:01:34]} 17. Rxd8+ {[%emt 0:01:52]} Kxd8 {[%emt 0:02:09]} 18. Rd1+ {[%emt 0:00:37]} Kc7 {[%emt 0:05:25]} 19. Nb3 {[%emt 0:03:17]} Rd8 {[%emt 0:03:27]} 20. Rxd8 {[%emt 0:00:11]} Nxd8 $15 {[%emt 0:00:41][%mdl 4096] Endspiel. KBN-KBN} 21. f3 {[%emt 0:01:49]} Kc6 {[%emt 0:00:43]} 22. c4 {[%emt 0:02:55] Ab hier gerät Weiß ins Schliddern.} (22. Kf1 $15) 22... Nb7 $17 {[%emt 0:03:05]} 23. Kf1 {[%emt 0:01:28]} Bb4 {[%emt 0:04:30]} 24. Bf2 {[%emt 0:03:13]} Nd6 {[%emt 0:03:12]} 25. e4 {[%emt 0:04:34]} Nxc4 {[%emt 0:01:01]} 26. Ke2 {[%emt 0:00:09]} Nb2 {[%emt 0:11:20]} 27. f4 {[%emt 0:00:40]} f6 {[%emt 0:00:43]} 28. Be3 {[%emt 0:03:18]} Kb5 {[%emt 0:01:11]} 29. fxe5 {[%emt 0:04:58]} fxe5 {[%emt 0:00:04]} 30. Bc1 {[%emt 0:00:17]} Na4 {[%emt 0:02:04] Droht stark ...Kc4.} 31. a3 $2 {[%emt 0:03:58] [#]} (31. Kd3) 31... Kc4 $19 {[%emt 0:03:16] Schwarz steht klar auf Gewinn.} 32. Nd2+ {[%emt 0:07:39]} Bxd2 {[%emt 0:00:08]} 33. Bxd2 {[%emt 0:00:37] KB-KN} Kd4 {[%emt 0:02:23]} 34. Bb4 {[%emt 0:02:09]} Kxe4 {[%emt 0:00:31]} 35. Bf8 {[%emt 0:00:43]} g6 {[%emt 0:00:10]} 36. Bd6 {[%emt 0:00:20]} Nc3+ {[%emt 0:03:40]} 37. Kd2 {[%emt 0:00:21]} Nb5 {[%emt 0:00:09]} 38. Bb8 {[%emt 0:00:36]} Nxa3 {[%emt 0:00:16]} 39. Bxa7 {[%emt 0:00:06]} Nc4+ {[%emt 0:00:11]} 40. Kc3 {[%emt 0:00:19]} Kd5 {[%emt 0:02:00]} 41. Bb8 {[%emt 0:31:12]} e4 {[%emt 0:32:14]} 42. Bf4 {[%emt 0:00:31]} e3 {[%emt 0:00:48]} 43. Kd3 {[%emt 0:00:32]} b5 {[%emt 0:00:07] Gewichteter Fehlerwert: Weiß=0.55/Schwarz=0.02 (makellos) .  Fehler:       	Weiß=2     	---        OK:         	Weiß=9     	Schwarz=15    Bester:       	---       	Schwarz=2} 0-1

[Event "WSTCC-50 2024"]
[Site "Krakow"]
[Date "2024.07.05"]
[Round "4.10"]
[White "Fox, Anthony"]
[Black "Forgo, Eva"]
[Result "1-0"]
[ECO "C88"]
[WhiteElo "1909"]
[BlackElo "2060"]
[Annotator "RC"]
[PlyCount "175"]
[EventDate "2024.07.01"]
[EventType "team-tourn"]
[EventCountry "POL"]
[SourceTitle "playchess.com"]
[Source "ChessBase"]
[SourceQuality "1"]
[TimeControl "40/5400+30:1800+30"]

1. e4 {[%emt 0:00:04]} e5 {[%emt 0:00:11]} 2. Nf3 {[%emt 0:00:09]} Nc6 {[%emt 0:00:06]} 3. Bb5 {[%emt 0:00:16]} a6 {[%emt 0:00:07]} 4. Ba4 {[%emt 0:00:07]} Nf6 {[%emt 0:00:08]} 5. O-O {[%emt 0:00:10]} Be7 {[%emt 0:00:17]} 6. Re1 {[%emt 0:00:14]} b5 {[%emt 0:00:05]} 7. Bb3 {[%emt 0:00:12]} d6 {[%emt 0:00:13]} 8. a4 {[%emt 0:01:02]} Bg4 {[%emt 0:06:39]} 9. c3 {[%emt 0:00:30]} Na5 {[%emt 0:07:13]} 10. Bc2 {[%emt 0:00:43]} c5 {[%emt 0:01:41]} 11. d3 {[%emt 0:04:54]} O-O {[%emt 0:00:45]} 12. Nbd2 {[%emt 0:01:19]} Nc6 {[%emt 0:04:10]} 13. h3 {[%emt 0:00:44]} Bd7 {[%emt 0:05:01]} 14. Nf1 {[%emt 0:01:27]} b4 {[%emt 0:03:14]} 15. Ng3 {[%emt 0:08:15]} g6 {[%emt 0:01:34]} 16. Bh6 {[%emt 0:05:40]} Re8 {[%emt 0:00:05]} 17. d4 {[%emt 0:12:50]} bxc3 {[%emt 0:08:28]} 18. bxc3 {[%emt 0:00:29]} cxd4 {[%emt 0:05:26]} 19. cxd4 {[%emt 0:00:33]} a5 {[%emt 0:01:15]} 20. Bb3 {[%emt 0:04:51]} Rb8 {[%emt 0:04:20]} 21. Ng5 {[%emt 0:11:10]} d5 {[%emt 0:06:46]} 22. dxe5 {[%emt 0:02:40]} Nxe5 {[%emt 0:06:17]} 23. exd5 {[%emt 0:03:49]} Bc5 {[%emt 0:18:31]} 24. N5e4 {[%emt 0:03:26]} Qb6 {[%emt 0:06:20]} 25. Nxf6+ {[%emt 0:05:46]} Qxf6 {[%emt 0:00:05]} 26. Ne4 {[%emt 0:00:28]} Qb6 {[%emt 0:00:47]} 27. Be3 {[%emt 0:15:01]} Bxe3 {[%emt 0:05:01]} 28. Rxe3 {[%emt 0:00:08]} Kg7 {[%emt 0:00:50]} 29. Rc1 {[%emt 0:03:01]} h6 {[%emt 0:01:15]} 30. Nc5 {[%emt 0:01:42]} Bf5 {[%emt 0:00:36]} 31. Qd4 {[%emt 0:01:08]} Qf6 {[%emt 0:00:37]} 32. Qa1 {[%emt 0:02:45]} g5 {[%emt 0:01:22]} 33. Rce1 {[%emt 0:02:15]} Rec8 {[%emt 0:00:02]} 34. Qxe5 {[%emt 0:01:53]} Qxe5 {[%emt 0:00:11]} 35. Rxe5 {[%emt 0:00:06]} Rxc5 {[%emt 0:00:18]} 36. Rxf5 {[%emt 0:00:17]} Rxb3 {[%emt 0:00:10]} 37. Re7 {[%emt 0:00:16]} Kg8 {[%emt 0:02:51]} 38. Rexf7 {[%emt 0:02:40]} Rd3 {[%emt 0:02:46]} 39. d6 {[%emt 0:01:01]} Rc1+ {[%emt 0:00:15]} 40. Kh2 {[%emt 0:00:22]} Rxd6 {[%emt 0:00:06]} 41. Ra7 {[%emt 0:31:28]} Ra1 {[%emt 0:05:18]} 42. Raxa5 {[%emt 0:00:00]} Rd4 {[%emt 0:01:20]} 43. Ra6 {[%emt 0:00:00]} Kg7 {[%emt 0:02:42]} 44. a5 {[%emt 0:00:00]} Rda4 {[%emt 0:00:25]} 45. Rb5 {[%emt 0:00:00]} Rf4 {[%emt 0:00:21]} 46. Rb7+ {[%emt 0:00:00]} Rf7 {[%emt 0:01:33]} 47. Rxf7+ {[%emt 0:00:00]} Kxf7 {[%emt 0:00:03]} 48. Rxh6 {[%emt 0:00:00]} Rxa5 {[%emt 0:00:08]} 49. f3 {[%emt 0:00:00]} Kg7 {[%emt 0:00:32]} 50. Rb6 {[%emt 0:00:00]} Ra4 {[%emt 0:00:23]} 51. Kg3 {[%emt 0:00:00]} Kf7 {[%emt 0:01:11]} 52. Rh6 {[%emt 0:00:00]} Kg7 {[%emt 0:00:59]} 53. Re6 {[%emt 0:00:00]} Kf7 {[%emt 0:00:19]} 54. Re4 {[%emt 0:00:00]} Ra2 {[%emt 0:00:09]} 55. h4 {[%emt 0:00:00]} gxh4+ {[%emt 0:00:10]} 56. Rxh4 {[%emt 0:00:00]} Kg6 {[%emt 0:00:16]} 57. Rb4 {[%emt 0:00:00]} Kf5 {[%emt 0:00:43]} 58. Rb5+ {[%emt 0:00:00]} Kf6 {[%emt 0:00:06]} 59. Kh3 {[%emt 0:00:00]} Rf2 {[%emt 0:01:42]} 60. Kg3 {[%emt 0:00:00]} Ra2 {[%emt 0:00:03]} 61. f4 {[%emt 0:00:00]} Rc2 {[%emt 0:00:18]} 62. Kh3 {[%emt 0:00:00]} Rc3+ {[%emt 0:03:45]} 63. Kg4 {[%emt 0:00:00]} Rc6 {[%emt 0:00:04]} 64. g3 {[%emt 0:00:00]} Ra6 {[%emt 0:00:24]} 65. Rh5 {[%emt 0:00:00]} Kg6 {[%emt 0:00:34]} 66. f5+ {[%emt 0:00:00]} Kg7 {[%emt 0:00:09]} 67. Kg5 {[%emt 0:00:00]} Rb6 {[%emt 0:01:05]} 68. g4 {[%emt 0:00:00]} Ra6 {[%emt 0:00:42]} 69. Rh1 {[%emt 0:00:00]} Rb6 {[%emt 0:00:56]} 70. Ra1 {[%emt 0:00:00]} Rb7 {[%emt 0:01:25]} 71. Ra6 {[%emt 0:00:00]} Rc7 {[%emt 0:00:35]} 72. Rh6 {[%emt 0:00:00]} Rc5 {[%emt 0:00:33]} 73. Re6 {[%emt 0:00:00]} Kf7 {[%emt 0:00:35]} 74. Rd6 {[%emt 0:00:00]} Rc7 {[%emt 0:03:55]} 75. Rh6 {[%emt 0:00:00]} Kg7 {[%emt 0:04:02]} 76. f6+ {[%emt 0:00:00]} Kg8 {[%emt 0:00:09]} 77. Kf5 {[%emt 0:00:00]} Ra7 {[%emt 0:03:18]} 78. Rh1 {[%emt 0:00:00]} Rb7 {[%emt 0:01:01]} 79. g5 {[%emt 0:00:00]} Ra7 {[%emt 0:01:54]} 80. Rb1 {[%emt 0:00:00]} Ra8 {[%emt 0:00:43]} 81. Rb7 {[%emt 0:00:00]} Kh8 {[%emt 0:02:41]} 82. Rb5 {[%emt 0:00:00]} Kh7 {[%emt 0:02:01]} 83. Re5 {[%emt 0:00:00]} Kh8 {[%emt 0:00:56]} 84. g6 {[%emt 0:00:00]} Kg8 {[%emt 0:01:45]} 85. Kg5 {[%emt 0:00:09]} Kf8 {[%emt 0:01:25]} 86. Rb5 {[%emt 0:00:41]} Rc8 {[%emt 0:00:28]} 87. Kh6 {[%emt 0:00:11]} Ra8 {[%emt 0:00:41]} 88. Kh7 {[%emt 0:00:39]} 1-0

[Event "WSTCC-50 2024"]
[Site "Krakow"]
[Date "2024.07.05"]
[Round "4.11"]
[White "Ginsburg, Mark"]
[Black "Sagalchik, Olga"]
[Result "1-0"]
[ECO "A05"]
[WhiteElo "2272"]
[BlackElo "2128"]
[Annotator "TA"]
[PlyCount "71"]
[EventDate "2024.07.01"]
[EventType "team-tourn"]
[EventCountry "POL"]
[SourceTitle "playchess.com"]
[Source "ChessBase"]
[SourceQuality "1"]
[TimeControl "40/5400+30:1800+30"]

{[%evp 19,71,54,45,43,59,33,64,11,85,79,136,122,121,129,213,201,171,144,254,126,177,74,70,61,58,55,51,54,145,154,194,118,308,296,420,342,569,503,627,319,322,211,211,204,593,637,1050,980,29985,29986,29991,29992,29992,29991]} 1. Nf3 {[%emt 0:00:37]} Nf6 {[%emt 0:00:35]} 2. c4 {[%emt 0:00:24]} c6 {[%emt 0:01:34]} 3. g3 {[%emt 0:03:32]} d6 {[%emt 0:03:14]} 4. Bg2 {[%emt 0:00:16]} Nbd7 {[%emt 0:00:52]} 5. O-O {[%emt 0:01:11]} e5 {[%emt 0:00:33]} 6. Nc3 {[%emt 0:00:43]} Be7 {[%emt 0:00:41]} 7. d4 {[%emt 0:02:49]} O-O {[%emt 0:01:26]} 8. e4 {[%emt 0:04:00]} Re8 {[%emt 0:01:53]} 9. h3 {[%emt 0:01:02]} Qc7 {[%emt 0:02:27]} 10. Be3 {[%emt 0:01:06]} a6 {[%emt 0:01:25]} 11. Rc1 {[%emt 0:02:56]} Bf8 {[%emt 0:02:31]} 12. Re1 {[%emt 0:04:13]} Qb8 {[%emt 0:04:48]} 13. b4 {[%emt 0:12:25]} (13. d5 $14) 13... a5 {[%emt 0:16:02]} (13... b5 $11) 14. b5 $16 {[%emt 0:05:33]} exd4 {[%emt 0:06:02]} (14... g6 $142) 15. Nxd4 {[%emt 0:01:02]} c5 {[%emt 0:05:24]} 16. Nf5 {[%emt 0:05:56] Weiß steht aktiver.} g6 {[%emt 0:03:05]} (16... h6 $16 {ist wohl besser.} 17. Bd2 Nb6) 17. Nh6+ $18 {[%emt 0:02:58]} Kg7 {[%emt 0:00:18]} 18. g4 {[%emt 0:02:15]} Nb6 {[%emt 0:04:16]} (18... Ng8 $16) 19. g5 {[%emt 0:07:34]} (19. Qf3 $18 {und Weiss behält klar die Oberhand.} Be6 20. Nd5) 19... Ng8 $16 {[%emt 0:01:25]} 20. Nxg8 {[%emt 0:05:04]} (20. Bd4+ $18 cxd4 21. Qxd4+ Re5 22. f4 (22. Qxb6 Rxg5 23. Ng4 Rc5 $14)) 20... Kxg8 {[%emt 0:00:07]} 21. Nd5 {[%emt 0:02:17]} Nxd5 {[%emt 0:00:11]} 22. Qxd5 {[%emt 0:01:12]} Be6 {[%emt 0:00:26]} 23. Qd3 {[%emt 0:00:02]} Be7 {[%emt 0:08:36]} (23... Bg7 $14) 24. f4 $36 {[%emt 0:00:11][%mdl 2048] Schwarz steht unter starkem Druck.} Qc8 {[%emt 0:04:10]} 25. h4 {[%emt 0:00:46]} (25. Bd2 $18) 25... h5 $2 {[%emt 0:03:36] Führt Schwarz ins Verderben.} (25... Bg4 $16 {ist eine bessere Verteidigung.} 26. Bd2 Bf8) 26. Bd2 $18 {[%emt 0:02:16][%cal Be3d2,Bd2c3,Bc3b2][%mdl 32]} ({Schwächer ist} 26. gxh6 Bh3 $18) 26... b6 {[%emt 0:11:39]} (26... Bg4 {war nötig.} 27. f5 gxf5 28. exf5 Bxf5) 27. Bc3 {[%emt 0:00:40]} Ra7 $2 {[%emt 0:00:41]} (27... Bg4 28. f5 Bf8 29. fxg6 fxg6) 28. Bb2 {[%emt 0:01:23]} Kh7 {[%emt 0:00:10]} 29. Rf1 {[%emt 0:04:37] [#] Und f5 würde nun gewinnen.} Bg4 {[%emt 0:09:06]} 30. Qc3 {[%emt 0:08:00]} ({Jedoch nicht} 30. f5 Bf8 31. Bf3 Bxf3 $18) 30... Rg8 {[%emt 0:00:21] Gegen Qg7+ gerichtet.} 31. f5 {[%emt 0:01:21]} gxf5 {[%emt 0:02:05]} (31... Bf8 32. Qg3 a4) 32. exf5 {[%emt 0:00:06][%cal Og5g6,Be4f5,Bf5f6,Bf6f7][%mdl 32] Und jetzt g6+! wäre schön.} f6 {[%emt 0:00:17][%cal Bf7f6,Bf6g5][%mdl 32]} 33. Rce1 {[%emt 0:01:29][%cal Oe1e7] [#] Weiss droht Rxe7+! und Matt.} fxg5 {[%emt 0:02:53]} 34. f6 {[%emt 0:01:12] Weiß setzt Matt.} Bf8 {[%emt 0:00:26]} 35. f7 {[%emt 0:01:32]} Rg7 {[%emt 0:01:06]} 36. Re8 {[%emt 0:00:34] Gewichteter Fehlerwert: Weiß=0.57/Schwarz=0.94.  Verlustzug:     	---       	Schwarz=1     Fehler:       	Weiß=4     	Schwarz=8     Ungenau:       	Weiß=2     	Schwarz=2     OK:         	Weiß=5     	Schwarz=4     Bester:       	Weiß=1     	Schwarz=1} 1-0

[Event "WSTCC-50 2024"]
[Site "Krakow"]
[Date "2024.07.05"]
[Round "4.11"]
[White "Barron, Michael"]
[Black "Hughes, Anthony"]
[Result "1-0"]
[ECO "B13"]
[WhiteElo "2046"]
[BlackElo "1913"]
[Annotator "NA RC"]
[PlyCount "95"]
[EventDate "2024.07.01"]
[EventType "team-tourn"]
[EventCountry "POL"]
[SourceTitle "playchess.com"]
[Source "ChessBase"]
[SourceQuality "1"]
[TimeControl "40/5400+30:1800+30"]

1. e4 {[%emt 0:00:02]} c6 {[%emt 0:00:06]} 2. d4 {[%emt 0:00:02]} d5 {[%emt 0:00:04]} 3. exd5 {[%emt 0:00:08]} cxd5 {[%emt 0:00:04]} 4. Bd3 {[%emt 0:00:09]} Nc6 {[%emt 0:00:19]} 5. c3 {[%emt 0:00:02]} Nf6 {[%emt 0:00:22]} 6. Bf4 {[%emt 0:00:27]} Bg4 {[%emt 0:01:41]} 7. Qb3 {[%emt 0:00:04]} Qd7 {[%emt 0:02:36]} 8. Nd2 {[%emt 0:00:09]} e6 {[%emt 0:01:40]} 9. Ngf3 {[%emt 0:00:04]} Bxf3 {[%emt 0:15:45]} 10. Nxf3 {[%emt 0:00:04]} Bd6 {[%emt 0:01:30]} 11. Bxd6 {[%emt 0:00:24]} Qxd6 {[%emt 0:00:02]} 12. O-O {[%emt 0:00:14]} O-O {[%emt 0:00:52]} 13. Rae1 {[%emt 0:00:10]} Rac8 {[%emt 0:09:10]} 14. Ne5 {[%emt 0:00:15]} Rc7 {[%emt 0:06:36]} 15. f4 {[%emt 0:00:26]} Na5 {[%emt 0:17:46]} 16. Qc2 {[%emt 0:02:12]} Nc4 {[%emt 0:03:48]} 17. g4 {[%emt 0:00:21]} g6 {[%emt 0:03:46]} 18. Qg2 {[%emt 0:07:30]} b5 {[%emt 0:08:56]} 19. a3 {[%emt 0:03:57]} a5 {[%emt 0:00:15]} 20. f5 {[%emt 0:00:06]} exf5 {[%emt 0:01:31]} 21. gxf5 {[%emt 0:00:33]} b4 {[%emt 0:05:03]} 22. axb4 {[%emt 0:09:06]} axb4 {[%emt 0:00:04]} 23. Bxc4 {[%emt 0:00:40]} dxc4 {[%emt 0:00:15]} 24. Re3 {[%emt 0:00:03]} bxc3 {[%emt 0:07:34]} 25. bxc3 {[%emt 0:00:11]} Qd5 {[%emt 0:05:06]} 26. Qg5 {[%emt 0:01:05]} Ne4 {[%emt 0:02:03]} 27. Qh4 {[%emt 0:04:22]} f6 {[%emt 0:04:02]} 28. fxg6 {[%emt 0:05:29]} Rg7 {[%emt 0:01:28]} 29. Qxe4 {[%emt 0:00:18]} Qxe4 {[%emt 0:00:13]} 30. Rxe4 {[%emt 0:00:02]} fxe5 {[%emt 0:00:09]} 31. Rxf8+ {[%emt 0:00:11]} Kxf8 {[%emt 0:00:02]} 32. Rxe5 {[%emt 0:00:12]} Rxg6+ {[%emt 0:00:24]} 33. Kf2 {[%emt 0:00:12]} Rh6 {[%emt 0:01:11]} 34. Kg3 {[%emt 0:00:03]} Rg6+ {[%emt 0:00:23]} 35. Kf4 {[%emt 0:00:24]} Rh6 {[%emt 0:00:16]} 36. Rc5 {[%emt 0:00:03]} Rxh2 {[%emt 0:00:12]} 37. Rxc4 {[%emt 0:00:02]} Ke7 {[%emt 0:00:19]} 38. Rc6 {[%emt 0:00:28]} Kd7 {[%emt 0:00:38]} 39. d5 {[%emt 0:00:03]} Rh4+ {[%emt 0:02:06]} 40. Ke5 {[%emt 0:00:07]} Rh5+ {[%emt 0:00:05]} 41. Kd4 {[%emt 0:30:15]} Rh1 {[%emt 0:05:59]} 42. c4 {[%emt 0:00:00]} h5 {[%emt 0:00:29]} 43. Rh6 {[%emt 0:00:00]} h4 {[%emt 0:00:50]} 44. Rh7+ {[%emt 0:00:00]} Kd8 {[%emt 0:03:08]} 45. d6 {[%emt 0:00:00]} h3 {[%emt 0:00:55]} 46. Kd5 {[%emt 0:00:00]} h2 {[%emt 0:01:06]} 47. Kc6 {[%emt 0:00:00]} Re1 {[%emt 0:02:07]} 48. Rxh2 {[%emt 0:00:00]} 1-0

[Event "WSTCC-50 2024"]
[Site "Krakow"]
[Date "2024.07.05"]
[Round "4.11"]
[White "Csom, Etelka"]
[Black "Lyons, Brendan"]
[Result "1-0"]
[ECO "B26"]
[WhiteElo "1996"]
[BlackElo "1920"]
[Annotator "NA RC"]
[PlyCount "69"]
[EventDate "2024.07.01"]
[EventType "team-tourn"]
[EventCountry "POL"]
[SourceTitle "playchess.com"]
[Source "ChessBase"]
[SourceQuality "1"]
[TimeControl "40/5400+30:1800+30"]

1. e4 {[%emt 0:00:04]} c5 {[%emt 0:00:32]} 2. Nc3 {[%emt 0:00:14]} g6 {[%emt 0:00:13]} 3. g3 {[%emt 0:00:24]} Bg7 {[%emt 0:00:35]} 4. Bg2 {[%emt 0:00:20]} Nc6 {[%emt 0:00:22]} 5. d3 {[%emt 0:00:14]} d6 {[%emt 0:01:02]} 6. Be3 {[%emt 0:00:21]} Nf6 {[%emt 0:01:00]} 7. h3 {[%emt 0:02:17]} O-O {[%emt 0:04:52]} 8. Qd2 {[%emt 0:01:52]} Rb8 {[%emt 0:02:35]} 9. f4 {[%emt 0:08:21]} Bd7 {[%emt 0:07:45]} 10. Nf3 {[%emt 0:02:27]} Qc8 {[%emt 0:06:06]} 11. g4 {[%emt 0:04:13]} b5 {[%emt 0:05:48]} 12. O-O {[%emt 0:05:33]} b4 {[%emt 0:09:23]} 13. Ne2 {[%emt 0:02:21]} Qc7 {[%emt 0:05:19]} 14. f5 {[%emt 0:04:32]} Rfd8 {[%emt 0:10:27]} 15. Nf4 {[%emt 0:09:34]} c4 {[%emt 0:04:58]} 16. Qf2 {[%emt 0:10:47]} Ne5 {[%emt 0:07:40]} 17. g5 {[%emt 0:04:39]} Nfg4 {[%emt 0:11:45]} 18. hxg4 {[%emt 0:02:11]} Nxg4 {[%emt 0:00:06]} 19. Qe2 {[%emt 0:00:30]} Bxb2 {[%emt 0:00:28]} 20. Rab1 {[%emt 0:00:39]} cxd3 {[%emt 0:07:50]} 21. cxd3 {[%emt 0:00:38]} Bc3 {[%emt 0:01:23]} 22. Nd5 {[%emt 0:01:06]} Qa5 {[%emt 0:00:41]} 23. Bd4 {[%emt 0:10:00]} Bxd4+ {[%emt 0:03:10]} 24. Nxd4 {[%emt 0:00:03]} Qc5 {[%emt 0:00:15]} 25. Qxg4 {[%emt 0:00:46]} Qxd4+ {[%emt 0:00:04]} 26. Kh1 {[%emt 0:00:24]} Qxd3 {[%emt 0:05:47]} 27. Qf4 {[%emt 0:00:59]} Rf8 {[%emt 0:02:56]} 28. Nxe7+ {[%emt 0:00:34]} Kg7 {[%emt 0:00:51]} 29. Qh4 {[%emt 0:04:18]} gxf5 {[%emt 0:00:30]} 30. exf5 {[%emt 0:01:01]} f6 {[%emt 0:00:32]} 31. Qh6+ {[%emt 0:01:32]} Kh8 {[%emt 0:00:12]} 32. Ng6+ {[%emt 0:02:54]} Kg8 {[%emt 0:00:06]} 33. Nxf8 {[%emt 0:01:02]} Rxf8 {[%emt 0:00:16]} 34. g6 {[%emt 0:00:52]} hxg6 {[%emt 0:00:52]} 35. fxg6 {[%emt 0:00:16]} 1-0